Workbook

Sheet veiculo
B4: CODEVASF
C7: Hilux CD SR 3.0 diesel 4x4 163cv
B9: A | C9: Depreciação mensal do equipamento
B10: A1 | C10: Preço de Aquisição
B11: A2 | C11: Tempo previsto de vida útil (meses)
B12: A3 | C12: Previsão de recup. Na venda do bem usado
B13: A4 | C13: Custo mensal [A1-(A3xA1)]/A2
B15: B | C15: Juros pelo Capital empregado
B16: B1 | C16: Taxa mensal de Juros
B17: B2 | C17: Juros s/depreciação/aluguel (B1xA4)
B19: C | C19: Conservação e manutenção
B20: C1 | C20: Taxa de gastos s/a deprec. Inc. seguros (%)
B21: C2 | C21: Incidência mensal (C1xA4)
B23: D | C23: Combustível
B24: D1 | C24: Média mensal de quilômetro por veículo
B25: D2 | C25: Preço do litro de combustível
B26: D3 | C26: Quilômetros rodados com um litro combustivel
B27: D4 | C27: Combustivel (D1/D3)*D2
B29: E | C29: Lubrificantes
B30: E1 | C30: Quilometragem do Contrato
B31: E2 | C31: Franquia por troca de óleo (km)
B32: E3 | C32: Preço do litro de óleo
B33: E4 | C33: Quantidade de litros de óleo por troca
B34: E5 | C34: Quantidade de dias do Contrato
B35: E6 | C35: Lubrificantes E = (E1*E3*E4*30)/E2*E5
B37: F | C37: Pneus
B38: F1 | C38: Quilometragem do Contrato
B39: F2 | C39: Vida do Pneu em quilômetros
B40: F3 | C40: Quantidade de pneus
B41: F4 | C41: Preço do Pneu
B42: F5 | C42: Quantidade de dias do contrato
B43: F6 | C43: Pneus = (F1*F3*F4*30)/(F2*F5)
B45: G | C45: Motorista
B46: G1 | C46: Salário com encargos sociais
B48: H | C48: Custo Mensal
C49: Sem Motorista
B52: I | C52: Custo Direto p/ km Rodado
C53: Sem Motorista
B56: J | C56: Preço cobrado pela empresa
B57: J1
B58: J2

Sheet MEM
A1: EWQUIPAMENTOS COMISSIONAMENTO
G2: EMPRESA
B3: DESCRIÇÃO | C3: UNID | D3: QUANT | E3: PREÇO UNITÁRIO | J3: MÉDIA | K3: MEDIANA
E4: ADOTADO | F4: TOTAL | G4: A | H4: B | I4: C
A5: 2.1 | B5: Medidor Eletromagnético de vazão | C5: conj. | D5: 4 | E5: =MIN(J5:K5) -> 12934.87333 | F5: =ROUND(D5*E5,2) -> 51739.49 | G5: 13399.16 | H5: 13552 | I5: 11853.46 | J5: =AVERAGE(G5:I5) -> 12934.87333 | K5: =MEDIAN(G5:I5) -> 13399.16
A7: 2.2 | B7: Transmissor de pressão | C7: conj. | D7: 4 | E7: =MIN(J7:K7) -> 2160.89 | F7: =ROUND(D7*E7,2) -> 8643.56 | G7: 2191.27 | H7: 2477.15 | I7: 1814.25 | J7: =AVERAGE(G7:I7) -> 2160.89 | K7: =MEDIAN(G7:I7) -> 2191.27
A9: 2.3 | B9: Relé microprocessado digital | C9: conj. | D9: 8 | E9: =MIN(J9:K9) -> 1285.92 | F9: =ROUND(D9*E9,2) -> 10287.36 | G9: 1285.92 | H9: 1545.12 | I9: 1230.59 | J9: =AVERAGE(G9:I9) -> 1353.876667 | K9: =MEDIAN(G9:I9) -> 1285.92
A11: 2.4 | B11: Transmissor de temperatura PT100 | C11: conj. | D11: 12 | E11: =MIN(J11:K11) -> 647.08 | F11: =ROUND(D11*E11,2) -> 7764.96 | G11: 732.61 | H11: 715.29 | I11: 493.34 | J11: =AVERAGE(G11:I11) -> 647.08 | K11: =MEDIAN(G11:I11) -> 715.29
A13: 2.5 | B13: Medidor de vibração | C13: conj. | D13: 8 | E13: =MIN(J13:K13) -> 7827.36 | F13: =ROUND(D13*E13,2) -> 62618.88 | G13: 7827.36 | H13: 9125.12 | I13: 6937.02 | J13: =AVERAGE(G13:I13) -> 7963.166667 | K13: =MEDIAN(G13:I13) -> 7827.36
A15: 2.6 | B15: Transmissor de nível | C15: conj. | D15: 4 | E15: =MIN(J15:K15) -> 7317.96 | F15: =ROUND(D15*E15,2) -> 29271.84 | G15: 7833.33 | H15: 7628.89 | I15: 6491.66 | J15: =AVERAGE(G15:I15) -> 7317.96 | K15: =MEDIAN(G15:I15) -> 7628.89
B17: TOTAL | E17: =SUM(E5:E15) -> 32174.08333
A19: EMPRESA
A20: A | B20: SCHEIDER
A21: B | B21: SCAI AUTOMAÇÃO
A22: C | B22: VECTOR

Sheet DETA MATE
A2: 2.7
A3: ITEM | B3: DESCRIÇÃO | C3: UNID | D3: QUANT | E3: PREÇO(R$)
E4: UNITÁRIO | F4: TOTAL
A5: 1 | B5: Cabo Flexível isol. PVC – 0,6/1kV 3 x 1,5 mm² | C5: m | D5: 3760 | F5: =ROUND(D5*E5,2) -> 0
A6: 2 | B6: Cabo para instrumentação, isolação 300 V, com blindagem eletrostática, conforme NBR 6251, 2x1 mm² - mod: 210 MA FR | C6: m | D6: 3760 | F6: =ROUND(D6*E6,2) -> 0
A7: 3 | B7: Eletroduto galvanizado a fogo conforme NBR 5597, rosca BSP, peça = 3m com luva Ø 2” | C7: pc | D7: 400 | F7: 0
A8: 4 | B8: Condulete em alumínio-silicio, pintura eletrostática em epóxi cinza tipo T Ø2” | C8: pc | D8: 24 | F8: 0
A9: 5 | B9: Eletroduto metálico flexível, revestido em PVC preto Ø 2” | C9: m | D9: 312 | F9: 0
A10: 6 | B10: Conector macho giratório zincado, rosca BSP Ø2” | C10: pc | D10: 88 | F10: 0
A11: 7 | B11: Conector macho zincado, BSP Ø2” | C11: pc | D11: 88 | F11: 0
B12: SUB -TOTAL | F12: =SUM(F5:F11) -> 0
B13: BDI | E13: 0.1576 | F13: =ROUND(E13*F12,2) -> 0
B14: TOTAL | F14: =F12+F13 -> 0

Sheet MAT DE MONT
A2: JAÍBA-MG | E2: ADOTADO | F2: SINAPI | H2: UNIÃO | I2: TME | J2: REIPLAS | K2: EUROCABOS | L2: MÉDIA | M2: MEDIANA | N2: APROV.
A3: ITEM | B3: DESCRIÇÃO | C3: UNID | D3: QUANT. | E3: valor unid. | F3: código | G3: valor unid. | H3: valor unid. | I3: valor unid. | J3: valor unid. | K3: valor unid.
A4: 1 | B4: Cabo Flexível isol. PVC – 06/1kV 3 x 1,5mm² | C4: m | D4: 3760 | E4: =N4 -> 1.46 | F4: não tem | H4: 1.4 | I4: 1.52 | J4: 1.4 | K4: 2.21 | L4: =IF(H4<>0,AVERAGE(K4,J4,I4,H4),"") -> 1.6325 | M4: =IF(H4<>0,MEDIAN(K4,H4,I4,J4),"") -> 1.46 | N4: =IF((G4+H4)<>0,MIN(M4,L4,G4),"") -> 1.46
A5: 2 | B5: Cabo para instrumentação, isolação 300V, com blindagem eletrostática, conforme NBR 6251, 2 x 1 mm² - mod: 210 MA FR | C5: m | D5: 3760 | E5: =N5 -> 1.33955 | F5: não tem | H5: 1.3 | I5: 1.66 | J5: 0.9982 | K5: 1.4 | L5: =IF(H5<>0,AVERAGE(K5,J5,I5,H5),"") -> 1.33955 | M5: =IF(H5<>0,MEDIAN(K5,H5,I5,J5),"") -> 1.35 | N5: =IF((G5+H5)<>0,MIN(M5,L5,G5),"") -> 1.33955
A8: JAÍBA | E8: ADOTADO | F8: SINAPI-MG / DEZ-11 | H8: UNIÃO | I8: TME | J8: 3 | K8: 4 | L8: MÉDIA | M8: MEDIANA | N8: APROV.
A9: ITEM | B9: DESCRIÇÃO | C9: UNID | D9: QUANT | E9: valor unid. | F9: código | G9: valor unid. | H9: valor unid. | I9: valor unid. | J9: valor unid. | K9: valor unid.
A10: 3 | B10: Eletroduto galvanizado a fogo conforme NBR 5597, rosca BSP, peça = 3m com luva Ø 2” | C10: pc | D10: 400 | E10: =N10 -> 42.9 | H10: 42.9 | I10: 85 | L10: =IF(H10<>0,AVERAGE(K10,J10,I10,H10),"") -> 63.95 | M10: =IF(H10<>0,MEDIAN(H10,I10,J10,K10),"") -> 63.95 | N10: 42.9
A11: 4 | B11: Condulete em alumínio-silicio, pintura eletrostática em epóxi cinza tipo T Ø2” | C11: pc | D11: 24 | E11: =N11 -> 20.7 | F11: 2577 | G11: 25.97 | H11: 24.9 | I11: 16.5 | L11: =IF(H11<>0,AVERAGE(K11,J11,I11,H11),"") -> 20.7 | M11: =IF(H11<>0,MEDIAN(H11,I11,J11,K11),"") -> 20.7 | N11: =IF((G11+H11)<>0,MIN(M11,L11,G11),"") -> 20.7
A12: 5 | B12: Eletroduto metálico flexível, revestido em PVC preto Ø 2” | C12: m | D12: 312 | E12: =N12 -> 10.22 | F12: 2503 | G12: 13.77 | I12: 10.22 | L12: =AVERAGE(K12,J12,I12,H12) -> 10.22 | M12: =MEDIAN(H12,I12,J12,K12) -> 10.22 | N12: =IF((G12+H12)<>0,MIN(M12,L12,G12),"") -> 10.22
A13: 6 | B13: Conector macho giratório zincado, rosca BSP Ø2” | C13: pc | D13: 88 | E13: =N13 -> 21.16 | H13: 44.9 | I13: 21.16 | L13: =IF(H13<>0,AVERAGE(K13,J13,I13,H13),"") -> 33.03 | M13: =IF(H13<>0,MEDIAN(H13,I13,J13,K13),"") -> 33.03 | N13: 21.16
A14: 7 | B14: Conector macho giratório zincado, BSP Ø2” | C14: pc | D14: 88 | E14: =N14 -> 19.13 | H14: 42.75 | I14: 19.13 | L14: =IF(H14<>0,AVERAGE(K14,J14,I14,H14),"") -> 30.94 | M14: =IF(H14<>0,MEDIAN(H14,I14,J14,K14),"") -> 30.94 | N14: 19.13

Sheet FORNECIMENTO
A5: COMPOSIÇÃO DE PREÇOS UNITÁRIOS
A9: CÓDIGO: | B9: SERVIÇO: | H9: UNID.
A10: 2.1 | C10: =poo!B43 -> Medidor Eletromagnético de vazão | H10: =poo!C43 -> conj.
A14: EQUIPAMENTO | B14: MOD. | C14: QUANT. | D14: UTILIZAÇÃO | F14: CUSTO HORÁRIO | H14: PARCIAL
D15: PROD. | E15: IMPROD. | F15: PROD. | G15: IMPROD.
H16: =ROUND(C16*D16*F16,2)+ROUND(C16*E16*G16,2) -> 0
H17: =ROUND(C17*D17*F17,2)+ROUND(C17*E17*G17,2) -> 0
H24: =ROUND(C24*D24*F24,2)+ROUND(C24*E24*G24,2) -> 0
G25: (A) | H25: =SUM(H16:H24) -> 0
A27: MÃO DE OBRA SUPLEMENTAR | F27: QUANT. | G27: SALÁRIO | H27: PARCIAL
G28: HORA
H29: =ROUND(F29*G29,2) -> 0
H30: =ROUND(F30*G30,2) -> 0
H31: =ROUND(F31*G31,2) -> 0
H32: =ROUND(F32*G32,2) -> 0
H34: =SUM(H29:H33) -> 0
F35: ENCARGOS SOCIAIS
F36: TOTAL | G36: (B) | H36: =ROUND(H34*(1+H35),2) -> 0
A38: MATERIAIS | E38: QUANT. | F38: UNID. | G38: CUSTO | H38: PARCIAL
G39: UNITÁRIO
A40: MEDIDOR ELETROMAGNÉTICO DE VAZÃO | E40: 1 | F40: CJ | H40: =ROUND(E40*G40,2) -> 0
H41: =ROUND(E41*G41,2) -> 0
H42: =ROUND(E42*G42,2) -> 0
H43: =ROUND(E43*G43,2) -> 0
G45: (C) | H45: =SUM(H40:H44) -> 0
F47: (A)+(B)+(C) = (D) | H47: =H25+H36+H45 -> 0
A49: PRODUÇÃO DA EQUIPE | B49: 1 | C49: (E)
E50: CUSTO UNITÁRIO
D51: SEM TRANSPORTE (D)/(E) = (F) | H51: =H47/B49 -> 0
A53: TRANSPORTE | D53: DMT | E53: QUANT. | F53: UNID. | G53: CUSTO | H53: PARCIAL
G54: UNITÁRIO
G58: (G)
A60: CUSTO DIRETO | G60: (F)+(G) | H60: =H51+H58 -> 0
A61: BDI | G61: 0.1576 | H61: =G61*H60 -> 0
A62: PREÇO UNITÁRIO | H62: =ROUND(H60+H61,2) -> 0
A71: COMPOSIÇÃO DE PREÇOS UNITÁRIOS
A75: CÓDIGO: | B75: SERVIÇO: | H75: UNID.
A76: 2.2 | C76: =poo!B45 -> Transmissor de pressão | H76: =poo!C45 -> conj.
A80: EQUIPAMENTO | B80: MOD. | C80: QUANT. | D80: UTILIZAÇÃO | F80: CUSTO HORÁRIO | H80: PARCIAL
D81: PROD. | E81: IMPROD. | F81: PROD. | G81: IMPROD.
H82: =ROUND(C82*D82*F82,2)+ROUND(C82*E82*G82,2) -> 0
H83: =ROUND(C83*D83*F83,2)+ROUND(C83*E83*G83,2) -> 0
H90: =ROUND(C90*D90*F90,2)+ROUND(C90*E90*G90,2) -> 0
G91: (A) | H91: =SUM(H82:H90) -> 0
A93: MÃO DE OBRA SUPLEMENTAR | F93: QUANT. | G93: SALÁRIO | H93: PARCIAL
G94: HORA
H95: =ROUND(F95*G95,2) -> 0
H96: =ROUND(F96*G96,2) -> 0
H97: =ROUND(F97*G97,2) -> 0
H98: =ROUND(F98*G98,2) -> 0
H100: =SUM(H95:H99) -> 0
F101: ENCARGOS SOCIAIS
F102: TOTAL | G102: (B) | H102: =ROUND(H100*(1+H101),2) -> 0
A104: MATERIAIS | E104: QUANT. | F104: UNID. | G104: CUSTO | H104: PARCIAL
G105: UNITÁRIO
A106: TRANSMISSOR DE PRESSÃO | E106: 1 | F106: CJ | H106: =ROUND(E106*G106,2) -> 0
H107: 0
H108: 0
H109: 0
H110: 0
H111: 0
G112: (C) | H112: =SUM(H106:H111) -> 0
F114: (A)+(B)+(C) = (D) | H114: =H91+H102+H112 -> 0
A116: PRODUÇÃO DA EQUIPE | B116: 1 | C116: (E)
E117: CUSTO UNITÁRIO
D118: SEM TRANSPORTE (D)/(E) = (F) | H118: =H114/B116 -> 0
A120: TRANSPORTE | D120: DMT | E120: QUANT. | F120: UNID. | G120: CUSTO | H120: PARCIAL
G121: UNITÁRIO
G125: (G)
A127: CUSTO DIRETO | G127: (F)+(G) | H127: =H118+H125 -> 0
A128: BDI | G128: =G61 -> 0.1576 | H128: =G128*H127 -> 0
A129: PREÇO UNITÁRIO | H129: =ROUND(H127+H128,2) -> 0
A137: COMPOSIÇÃO DE PREÇOS UNITÁRIOS
A141: CÓDIGO: | B141: SERVIÇO: | H141: UNID.
A142: 2.3 | C142: =poo!B47 -> Relé microprocessado digital | H142: =poo!C47 -> conj.
A146: EQUIPAMENTO | B146: MOD. | C146: QUANT. | D146: UTILIZAÇÃO | F146: CUSTO HORÁRIO | H146: PARCIAL
D147: PROD. | E147: IMPROD. | F147: PROD. | G147: IMPROD.
H148: =ROUND(C148*D148*F148,2)+ROUND(C148*E148*G148,2) -> 0
H149: =ROUND(C149*D149*F149,2)+ROUND(C149*E149*G149,2) -> 0
H156: =ROUND(C156*D156*F156,2)+ROUND(C156*E156*G156,2) -> 0
G157: (A) | H157: =SUM(H148:H156) -> 0
A159: MÃO DE OBRA SUPLEMENTAR | F159: QUANT. | G159: SALÁRIO | H159: PARCIAL
G160: HORA
H161: =ROUND(F161*G161,2) -> 0
H162: =ROUND(F162*G162,2) -> 0
H163: =ROUND(F163*G163,2) -> 0
H164: =ROUND(F164*G164,2) -> 0
H165: =ROUND(F165*G165,2) -> 0
H166: =SUM(H161:H165) -> 0
F167: ENCARGOS SOCIAIS
F168: TOTAL | G168: (B) | H168: =ROUND(H166*(1+H167),2) -> 0
A170: MATERIAIS | E170: QUANT. | F170: UNID. | G170: CUSTO | H170: PARCIAL
G171: UNITÁRIO
A172: RELÉ MICROPROCESSADO DIGITAL | E172: 1 | F172: CJ | H172: =ROUND(E172*G172,2) -> 0
G173: =MDO!C87 -> 0 | H173: 0
H174: 0
H175: 0
H176: 0
H177: 0
G178: (C) | H178: =SUM(H172:H177) -> 0
F180: (A)+(B)+(C) = (D) | H180: =H157+H168+H178 -> 0
A182: PRODUÇÃO DA EQUIPE | B182: 1 | C182: (E)
E183: CUSTO UNITÁRIO
D184: SEM TRANSPORTE (D)/(E) = (F) | H184: =H180/B182 -> 0
A186: TRANSPORTE | D186: DMT | E186: QUANT. | F186: UNID. | G186: CUSTO | H186: PARCIAL
G187: UNITÁRIO
G191: (G)
A193: CUSTO DIRETO | G193: (F)+(G) | H193: =H184+H191 -> 0
A194: BDI | G194: =G128 -> 0.1576 | H194: =G194*H193 -> 0
A195: PREÇO UNITÁRIO | H195: =ROUND(H193+H194,2) -> 0
A203: COMPOSIÇÃO DE PREÇOS UNITÁRIOS
A207: CÓDIGO: | B207: SERVIÇO: | H207: UNID.
A208: 2.4 | C208: =poo!B49 -> Transmissor de temperatura PT100 | H208: =poo!C49 -> conj.
A212: EQUIPAMENTO | B212: MOD. | C212: QUANT. | D212: UTILIZAÇÃO | F212: CUSTO HORÁRIO | H212: PARCIAL
D213: PROD. | E213: IMPROD. | F213: PROD. | G213: IMPROD.
H214: =ROUND(C214*D214*F214,2)+ROUND(C214*E214*G214,2) -> 0
H215: =ROUND(C215*D215*F215,2)+ROUND(C215*E215*G215,2) -> 0
H222: =ROUND(C222*D222*F222,2)+ROUND(C222*E222*G222,2) -> 0
G223: (A) | H223: =SUM(H214:H222) -> 0
A225: MÃO DE OBRA SUPLEMENTAR | F225: QUANT. | G225: SALÁRIO | H225: PARCIAL
G226: HORA
H227: =ROUND(F227*G227,2) -> 0
H228: =ROUND(F228*G228,2) -> 0
H229: =ROUND(F229*G229,2) -> 0
H230: =ROUND(F230*G230,2) -> 0
H231: =ROUND(F231*G231,2) -> 0
H232: =SUM(H227:H231) -> 0
F233: ENCARGOS SOCIAIS
F234: TOTAL | G234: (B) | H234: =ROUND(H232*(1+H233),2) -> 0
A236: MATERIAIS | E236: QUANT. | F236: UNID. | G236: CUSTO | H236: PARCIAL
G237: UNITÁRIO
A238: TRANSMISSOR DE TEMPERATURA PT100 | E238: 1 | F238: CJ | H238: =ROUND(E238*G238,2) -> 0
G239: =MDO!C153 -> 0 | H239: 0
H240: 0
H241: 0
H242: 0
H243: 0
G244: (C) | H244: =SUM(H238:H243) -> 0
F246: (A)+(B)+(C) = (D) | H246: =H223+H234+H244 -> 0
A248: PRODUÇÃO DA EQUIPE | B248: 1 | C248: (E)
E249: CUSTO UNITÁRIO
D250: SEM TRANSPORTE (D)/(E) = (F) | H250: =H246/B248 -> 0
A252: TRANSPORTE | D252: DMT | E252: QUANT. | F252: UNID. | G252: CUSTO | H252: PARCIAL
G253: UNITÁRIO
G257: (G)
A259: CUSTO DIRETO | G259: (F)+(G) | H259: =H250+H257 -> 0
A260: BDI | G260: =G194 -> 0.1576 | H260: =G260*H259 -> 0
A261: PREÇO UNITÁRIO | H261: =ROUND(H259+H260,2) -> 0
A269: COMPOSIÇÃO DE PREÇOS UNITÁRIOS
A273: CÓDIGO: | B273: SERVIÇO: | H273: UNID.
A274: 2.5 | C274: =poo!B51 -> Medidor de vibração | H274: =poo!C51 -> conj.
A278: EQUIPAMENTO | B278: MOD. | C278: QUANT. | D278: UTILIZAÇÃO | F278: CUSTO HORÁRIO | H278: PARCIAL
D279: PROD. | E279: IMPROD. | F279: PROD. | G279: IMPROD.
H280: =ROUND(C280*D280*F280,2)+ROUND(C280*E280*G280,2) -> 0
H281: =ROUND(C281*D281*F281,2)+ROUND(C281*E281*G281,2) -> 0
H288: =ROUND(C288*D288*F288,2)+ROUND(C288*E288*G288,2) -> 0
G289: (A) | H289: =SUM(H280:H288) -> 0
A291: MÃO DE OBRA SUPLEMENTAR | F291: QUANT. | G291: SALÁRIO | H291: PARCIAL
G292: HORA
H293: =ROUND(F293*G293,2) -> 0
H294: =ROUND(F294*G294,2) -> 0
G295: =MDO!C74 -> 0 | H295: =ROUND(F295*G295,2) -> 0
G296: =MDO!C136 -> 0 | H296: =ROUND(F296*G296,2) -> 0
G297: =MDO!C140 -> 0 | H297: =ROUND(F297*G297,2) -> 0
H298: =SUM(H293:H297) -> 0
F299: ENCARGOS SOCIAIS
F300: TOTAL | G300: (B) | H300: =ROUND(H298*(1+H299),2) -> 0
A302: MATERIAIS | E302: QUANT. | F302: UNID. | G302: CUSTO | H302: PARCIAL
G303: UNITÁRIO
A304: MEDIDOR DE VIBRAÇÃO | E304: 1 | F304: CJ | H304: =ROUND(E304*G304,2) -> 0
G305: =MDO!C219 -> 0 | H305: 0
H306: 0
H307: 0
H308: 0
H309: 0
G310: (C) | H310: =SUM(H304:H309) -> 0
F312: (A)+(B)+(C) = (D) | H312: =H289+H300+H310 -> 0
A314: PRODUÇÃO DA EQUIPE | B314: 1 | C314: (E)
E315: CUSTO UNITÁRIO
D316: SEM TRANSPORTE (D)/(E) = (F) | H316: =H312/B314 -> 0
A318: TRANSPORTE | D318: DMT | E318: QUANT. | F318: UNID. | G318: CUSTO | H318: PARCIAL
G319: UNITÁRIO
G323: (G)
A325: CUSTO DIRETO | G325: (F)+(G) | H325: =H316+H323 -> 0
A326: BDI | G326: =G260 -> 0.1576 | H326: =G326*H325 -> 0
A327: PREÇO UNITÁRIO | H327: =ROUND(H325+H326,2) -> 0
A335: COMPOSIÇÃO DE PREÇOS UNITÁRIOS
A339: CÓDIGO: | B339: SERVIÇO: | H339: UNID.
A340: 2.6 | C340: =poo!B53 -> Transmissor de nível | H340: =poo!C53 -> conj.
A344: EQUIPAMENTO | B344: MOD. | C344: QUANT. | D344: UTILIZAÇÃO | F344: CUSTO HORÁRIO | H344: PARCIAL
D345: PROD. | E345: IMPROD. | F345: PROD. | G345: IMPROD.
H346: =ROUND(C346*D346*F346,2)+ROUND(C346*E346*G346,2) -> 0
H347: =ROUND(C347*D347*F347,2)+ROUND(C347*E347*G347,2) -> 0
H354: =ROUND(C354*D354*F354,2)+ROUND(C354*E354*G354,2) -> 0
G355: (A) | H355: =SUM(H346:H354) -> 0
A357: MÃO DE OBRA SUPLEMENTAR | F357: QUANT. | G357: SALÁRIO | H357: PARCIAL
H359: =ROUND(F359*G359,2) -> 0
H360: =ROUND(F360*G360,2) -> 0
H361: =ROUND(F361*G361,2) -> 0
H362: =ROUND(F362*G362,2) -> 0
... 23 more rows

Sheet MDO
A1: Janeiro: 2012
A2: MÃO DE OBRA MENSALISTA | B2: UNID | C2: SALÁRIO HORA
A3: AUTOMAÇÃO | C3: S/ENCARGOS
A5: ENGENHEIRO - P1 | B5: H
A7: ENGENHEIRO DE SOFTWARE - P1 | B7: H
A9: ANALISTA DE SISTEMAS - P2 | B9: H
A11: ENGENHEIRO - P2 | B11: H
A13: PROGRAMADOR - P4 | B13: H
A15: TÉCNICO EM AUTOMAÇÃO - TO | B15: H
A17: TÉCNICO EM INSTRUMENTAÇÃO - T2 | B17: H
A19: AUXILIAR TÉCNICO - T3 | B19: H
A23: MÃO DE OBRA HORISTA | B23: UNID | C23: SALÁRIO HORA
A24: MONTAGEM | D24: =220/176 -> 1.25
A25: ENCARREGADO - T1 | B25: H | D25: =E25/$D$24 -> 10.288 | E25: 12.86
A27: TÉCNICO ELETROMECÂNICO - T2 | B27: H | D27: =E27/$D$24 -> 8.504 | E27: 10.63
A29: AJUDANTE - T3 | B29: H | D29: =E29/$D$24 -> 3.68 | E29: 4.6

Sheet CPU-MONTAGEM
A5: COMPOSIÇÃO DE PREÇOS UNITÁRIOS
A9: CÓDIGO: | B9: SERVIÇO: | H9: UNID.
A10: =poo!A43 -> 3.1 | C10: =poo!B43 -> Medidor Eletromagnético de vazão | H10: =poo!C43 -> conj.
A14: EQUIPAMENTO | B14: MOD. | C14: QUANT. | D14: UTILIZAÇÃO | F14: CUSTO HORÁRIO | H14: PARCIAL
D15: PROD. | E15: IMPROD. | F15: PROD. | G15: IMPROD. | L15: 12934.87
H16: =ROUND(C16*D16*F16,2)+ROUND(C16*E16*G16,2) -> 0 | L16: 0.3
H17: =ROUND(C17*D17*F17,2)+ROUND(C17*E17*G17,2) -> 0 | L17: =L15*L16 -> 3880.461
H24: =ROUND(C24*D24*F24,2)+ROUND(C24*E24*G24,2) -> 0
G25: (A) | H25: =SUM(H16:H24) -> 0
A27: MÃO DE OBRA SUPLEMENTAR | F27: QUANT. | G27: SALÁRIO | H27: PARCIAL
G28: HORA
A29: =MDO!A25 -> ENCARREGADO - T1 | F29: 20 | H29: =ROUND(F29*G29,2) -> 0 | I29: =0.1*13966.8 -> 1396.68
A30: =MDO!A27 -> TÉCNICO ELETROMECÂNICO - T2 | F30: 44 | H30: =ROUND(F30*G30,2) -> 0
A31: =MDO!A29 -> AJUDANTE - T3 | F31: 132 | H31: =ROUND(F31*G31,2) -> 0
H32: =ROUND(F32*G32,2) -> 0
H34: =SUM(H29:H33) -> 0
F35: ENCARGOS SOCIAIS | H35: 1.2796
F36: TOTAL | G36: (B) | H36: =ROUND(H34*(1+H35),2) -> 0
A38: MATERIAIS | E38: QUANT. | F38: UNID. | G38: CUSTO | H38: PARCIAL
G39: UNITÁRIO
H40: =ROUND(E40*G40,2) -> 0
H41: =ROUND(E41*G41,2) -> 0
H42: =ROUND(E42*G42,2) -> 0
H43: =ROUND(E43*G43,2) -> 0
G45: (C) | H45: =SUM(H40:H44) -> 0
F47: (A)+(B)+(C) = (D) | H47: =H25+H36+H45 -> 0
A49: PRODUÇÃO DA EQUIPE | B49: 1 | C49: (E)
E50: CUSTO UNITÁRIO
D51: SEM TRANSPORTE (D)/(E) = (F) | H51: =H47/B49 -> 0
A53: TRANSPORTE | D53: DMT | E53: QUANT. | F53: UNID. | G53: CUSTO | H53: PARCIAL
G54: UNITÁRIO
G58: (G)
A60: CUSTO DIRETO | G60: (F)+(G) | H60: =H51+H58 -> 0
A61: BDI | G61: 0.2302 | H61: =G61*H60 -> 0
A62: PREÇO UNITÁRIO | H62: =ROUND(H60+H61,2) -> 0
A71: COMPOSIÇÃO DE PREÇOS UNITÁRIOS
A75: CÓDIGO: | B75: SERVIÇO: | H75: UNID.
A76: =poo!A45 -> 3.2 | C76: =poo!B45 -> Transmissor de pressão | H76: =poo!C45 -> conj.
A80: EQUIPAMENTO | B80: MOD. | C80: QUANT. | D80: UTILIZAÇÃO | F80: CUSTO HORÁRIO | H80: PARCIAL
D81: PROD. | E81: IMPROD. | F81: PROD. | G81: IMPROD.
H82: =ROUND(C82*D82*F82,2)+ROUND(C82*E82*G82,2) -> 0
H83: =ROUND(C83*D83*F83,2)+ROUND(C83*E83*G83,2) -> 0
H90: =ROUND(C90*D90*F90,2)+ROUND(C90*E90*G90,2) -> 0
G91: (A) | H91: =SUM(H82:H90) -> 0
A93: MÃO DE OBRA SUPLEMENTAR | F93: QUANT. | G93: SALÁRIO | H93: PARCIAL
G94: HORA
A95: =A29 -> ENCARREGADO - T1 | F95: 8 | G95: =G29 -> 0 | H95: =ROUND(F95*G95,2) -> 0 | K95: 2160.89
A96: =MDO!A27 -> TÉCNICO ELETROMECÂNICO - T2 | F96: 10 | H96: =ROUND(F96*G96,2) -> 0 | K96: 0.3
A97: =MDO!A29 -> AJUDANTE - T3 | F97: 20 | H97: =ROUND(F97*G97,2) -> 0 | K97: =K95*K96 -> 648.267
H98: =ROUND(F98*G98,2) -> 0
H100: =SUM(H95:H99) -> 0
F101: ENCARGOS SOCIAIS | H101: 1.2796
F102: TOTAL | G102: (B) | H102: =ROUND(H100*(1+H101),2) -> 0
A104: MATERIAIS | E104: QUANT. | F104: UNID. | G104: CUSTO | H104: PARCIAL
G105: UNITÁRIO
H106: =ROUND(E106*G106,2) -> 0
H107: 0
H108: 0
H109: 0
H110: 0
H111: 0
G112: (C) | H112: =SUM(H106:H111) -> 0
F114: (A)+(B)+(C) = (D) | H114: =H91+H102+H112 -> 0
A116: PRODUÇÃO DA EQUIPE | B116: 1 | C116: (E)
E117: CUSTO UNITÁRIO
D118: SEM TRANSPORTE (D)/(E) = (F) | H118: =H114/B116 -> 0
A120: TRANSPORTE | D120: DMT | E120: QUANT. | F120: UNID. | G120: CUSTO | H120: PARCIAL
G121: UNITÁRIO
G125: (G)
A127: CUSTO DIRETO | G127: (F)+(G) | H127: =H118+H125 -> 0
A128: BDI | G128: =G61 -> 0.2302 | H128: =G128*H127 -> 0
A129: PREÇO UNITÁRIO | H129: =ROUND(H127+H128,2) -> 0
A137: COMPOSIÇÃO DE PREÇOS UNITÁRIOS
A141: CÓDIGO: | B141: SERVIÇO: | H141: UNID.
A142: =poo!A47 -> 3.3 | C142: =poo!B47 -> Relé microprocessado digital | H142: =poo!C47 -> conj.
A146: EQUIPAMENTO | B146: MOD. | C146: QUANT. | D146: UTILIZAÇÃO | F146: CUSTO HORÁRIO | H146: PARCIAL
D147: PROD. | E147: IMPROD. | F147: PROD. | G147: IMPROD.
H148: =ROUND(C148*D148*F148,2)+ROUND(C148*E148*G148,2) -> 0
H149: =ROUND(C149*D149*F149,2)+ROUND(C149*E149*G149,2) -> 0
H156: =ROUND(C156*D156*F156,2)+ROUND(C156*E156*G156,2) -> 0
G157: (A) | H157: =SUM(H148:H156) -> 0
A159: MÃO DE OBRA SUPLEMENTAR | F159: QUANT. | G159: SALÁRIO | H159: PARCIAL
G160: HORA | J160: 1285.92
A161: =A95 -> ENCARREGADO - T1 | F161: 4 | H161: =ROUND(F161*G161,2) -> 0 | J161: 0.3
A162: =MDO!A27 -> TÉCNICO ELETROMECÂNICO - T2 | F162: 8 | H162: =ROUND(F162*G162,2) -> 0 | J162: =J160*J161 -> 385.776
A163: =MDO!A29 -> AJUDANTE - T3 | F163: 10 | H163: =ROUND(F163*G163,2) -> 0
H164: =ROUND(F164*G164,2) -> 0
H165: =ROUND(F165*G165,2) -> 0
H166: =SUM(H161:H165) -> 0
F167: ENCARGOS SOCIAIS | H167: 1.2796
F168: TOTAL | G168: (B) | H168: =ROUND(H166*(1+H167),2) -> 0
A170: MATERIAIS | E170: QUANT. | F170: UNID. | G170: CUSTO | H170: PARCIAL
G171: UNITÁRIO
H172: =ROUND(E172*G172,2) -> 0
H173: 0
H174: 0
H175: 0
H176: 0
H177: 0
G178: (C) | H178: =SUM(H172:H177) -> 0
F180: (A)+(B)+(C) = (D) | H180: =H157+H168+H178 -> 0
A182: PRODUÇÃO DA EQUIPE | B182: 1 | C182: (E)
E183: CUSTO UNITÁRIO
D184: SEM TRANSPORTE (D)/(E) = (F) | H184: =H180/B182 -> 0
A186: TRANSPORTE | D186: DMT | E186: QUANT. | F186: UNID. | G186: CUSTO | H186: PARCIAL
G187: UNITÁRIO
G191: (G)
A193: CUSTO DIRETO | G193: (F)+(G) | H193: =H184+H191 -> 0
A194: BDI | G194: =G128 -> 0.2302 | H194: =G194*H193 -> 0
A195: PREÇO UNITÁRIO | H195: =ROUND(H193+H194,2) -> 0
A203: COMPOSIÇÃO DE PREÇOS UNITÁRIOS
A207: CÓDIGO: | B207: SERVIÇO: | H207: UNID.
A208: =poo!A49 -> 3.4 | C208: =poo!B49 -> Transmissor de temperatura PT100 | H208: =poo!C49 -> conj.
A212: EQUIPAMENTO | B212: MOD. | C212: QUANT. | D212: UTILIZAÇÃO | F212: CUSTO HORÁRIO | H212: PARCIAL
D213: PROD. | E213: IMPROD. | F213: PROD. | G213: IMPROD.
H214: =ROUND(C214*D214*F214,2)+ROUND(C214*E214*G214,2) -> 0
H215: =ROUND(C215*D215*F215,2)+ROUND(C215*E215*G215,2) -> 0
H222: =ROUND(C222*D222*F222,2)+ROUND(C222*E222*G222,2) -> 0
G223: (A) | H223: =SUM(H214:H222) -> 0
A225: MÃO DE OBRA SUPLEMENTAR | F225: QUANT. | G225: SALÁRIO | H225: PARCIAL
G226: HORA
A227: =A161 -> ENCARREGADO - T1 | F227: 4 | H227: =ROUND(F227*G227,2) -> 0
A228: =MDO!A27 -> TÉCNICO ELETROMECÂNICO - T2 | F228: 8 | H228: =ROUND(F228*G228,2) -> 0
A229: =MDO!A29 -> AJUDANTE - T3 | F229: 8 | H229: =ROUND(F229*G229,2) -> 0
H230: =ROUND(F230*G230,2) -> 0
H231: =ROUND(F231*G231,2) -> 0
H232: =SUM(H227:H231) -> 0
F233: ENCARGOS SOCIAIS | H233: 1.2796
F234: TOTAL | G234: (B) | H234: =ROUND(H232*(1+H233),2) -> 0
A236: MATERIAIS | E236: QUANT. | F236: UNID. | G236: CUSTO | H236: PARCIAL
G237: UNITÁRIO
G238: =MDO!C153 -> 0 | H238: =ROUND(E238*G238,2) -> 0
G239: =MDO!C153 -> 0 | H239: 0
H240: 0
H241: 0
H242: 0
H243: 0
G244: (C) | H244: =SUM(H238:H243) -> 0
F246: (A)+(B)+(C) = (D) | H246: =H223+H234+H244 -> 0
A248: PRODUÇÃO DA EQUIPE | B248: 1 | C248: (E)
E249: CUSTO UNITÁRIO
D250: SEM TRANSPORTE (D)/(E) = (F) | H250: =H246/B248 -> 0
A252: TRANSPORTE | D252: DMT | E252: QUANT. | F252: UNID. | G252: CUSTO | H252: PARCIAL
G253: UNITÁRIO
G257: (G)
A259: CUSTO DIRETO | G259: (F)+(G) | H259: =H250+H257 -> 0
A260: BDI | G260: =G194 -> 0.2302 | H260: =G260*H259 -> 0
A261: PREÇO UNITÁRIO | H261: =ROUND(H259+H260,2) -> 0
A269: COMPOSIÇÃO DE PREÇOS UNITÁRIOS
A273: CÓDIGO: | B273: SERVIÇO: | H273: UNID.
A274: =poo!A51 -> 3.5 | C274: =poo!B51 -> Medidor de vibração | H274: =poo!C51 -> conj.
A278: EQUIPAMENTO | B278: MOD. | C278: QUANT. | D278: UTILIZAÇÃO | F278: CUSTO HORÁRIO | H278: PARCIAL
D279: PROD. | E279: IMPROD. | F279: PROD. | G279: IMPROD.
H280: =ROUND(C280*D280*F280,2)+ROUND(C280*E280*G280,2) -> 0
H281: =ROUND(C281*D281*F281,2)+ROUND(C281*E281*G281,2) -> 0
H288: =ROUND(C288*D288*F288,2)+ROUND(C288*E288*G288,2) -> 0
G289: (A) | H289: =SUM(H280:H288) -> 0
A291: MÃO DE OBRA SUPLEMENTAR | F291: QUANT. | G291: SALÁRIO | H291: PARCIAL
G292: HORA
A293: =A227 -> ENCARREGADO - T1 | F293: 8 | H293: =ROUND(F293*G293,2) -> 0
A294: =MDO!A27 -> TÉCNICO ELETROMECÂNICO - T2 | F294: 44 | H294: =ROUND(F294*G294,2) -> 0
A295: =MDO!A29 -> AJUDANTE - T3 | F295: 120 | H295: =ROUND(F295*G295,2) -> 0
H296: =ROUND(F296*G296,2) -> 0
G297: =MDO!C140 -> 0 | H297: =ROUND(F297*G297,2) -> 0
H298: =SUM(H293:H297) -> 0
F299: ENCARGOS SOCIAIS | H299: 1.2796
F300: TOTAL | G300: (B) | H300: =ROUND(H298*(1+H299),2) -> 0
A302: MATERIAIS | E302: QUANT. | F302: UNID. | G302: CUSTO | H302: PARCIAL
G303: UNITÁRIO
G304: =MDO!C219 -> 0 | H304: =ROUND(E304*G304,2) -> 0
G305: =MDO!C219 -> 0 | H305: 0
H306: 0
H307: 0
H308: 0
H309: 0
G310: (C) | H310: =SUM(H304:H309) -> 0
F312: (A)+(B)+(C) = (D) | H312: =H289+H300+H310 -> 0
A314: PRODUÇÃO DA EQUIPE | B314: 1 | C314: (E)
E315: CUSTO UNITÁRIO
D316: SEM TRANSPORTE (D)/(E) = (F) | H316: =H312/B314 -> 0
A318: TRANSPORTE | D318: DMT | E318: QUANT. | F318: UNID. | G318: CUSTO | H318: PARCIAL
G319: UNITÁRIO
G323: (G)
A325: CUSTO DIRETO | G325: (F)+(G) | H325: =H316+H323 -> 0
A326: BDI | G326: =G260 -> 0.2302 | H326: =G326*H325 -> 0
A327: PREÇO UNITÁRIO | H327: =ROUND(H325+H326,2) -> 0
A335: COMPOSIÇÃO DE PREÇOS UNITÁRIOS
A339: CÓDIGO: | B339: SERVIÇO: | H339: UNID.
A340: =poo!A53 -> 3.6 | C340: =poo!B53 -> Transmissor de nível | H340: =poo!C53 -> conj.
A344: EQUIPAMENTO | B344: MOD. | C344: QUANT. | D344: UTILIZAÇÃO | F344: CUSTO HORÁRIO | H344: PARCIAL
D345: PROD. | E345: IMPROD. | F345: PROD. | G345: IMPROD.
H346: =ROUND(C346*D346*F346,2)+ROUND(C346*E346*G346,2) -> 0
H347: =ROUND(C347*D347*F347,2)+ROUND(C347*E347*G347,2) -> 0
H354: =ROUND(C354*D354*F354,2)+ROUND(C354*E354*G354,2) -> 0
G355: (A) | H355: =SUM(H346:H354) -> 0
A357: MÃO DE OBRA SUPLEMENTAR | F357: QUANT. | G357: SALÁRIO | H357: PARCIAL
G358: HORA
A359: =A293 -> ENCARREGADO - T1 | F359: 10 | H359: =ROUND(F359*G359,2) -> 0 | J359: 7317.96
A360: =MDO!A27 -> TÉCNICO ELETROMECÂNICO - T2 | F360: 44 | H360: =ROUND(F360*G360,2) -> 0 | J360: 0.3
A361: =MDO!A29 -> AJUDANTE - T3 | F361: 88 | H361: =ROUND(F361*G361,2) -> 0 | J361: =J359*J360 -> 2195.388
... 61 more rows

Sheet CPU-AUTOMAÇÃO
A5: COMPOSIÇÃO DE PREÇOS UNITÁRIOS
A9: CÓDIGO: | B9: SERVIÇO: | H9: UNID.
A10: =poo!A13 -> 1.1 | C10: =poo!B13 -> Desenvolvimento de Software | H10: =poo!C13 -> dia
A14: EQUIPAMENTO | B14: MOD. | C14: QUANT. | D14: UTILIZAÇÃO | F14: CUSTO HORÁRIO | H14: PARCIAL
D15: PROD. | E15: IMPROD. | F15: PROD. | G15: IMPROD.
H16: =ROUND(C16*D16*F16,2)+ROUND(C16*E16*G16,2) -> 0
H17: =ROUND(C17*D17*F17,2)+ROUND(C17*E17*G17,2) -> 0
H24: =ROUND(C24*D24*F24,2)+ROUND(C24*E24*G24,2) -> 0
G25: (A) | H25: =SUM(H16:H24) -> 0
A27: MÃO DE OBRA SUPLEMENTAR | F27: QUANT. | G27: SALÁRIO | H27: PARCIAL
G28: HORA
A29: =MDO!A5 -> ENGENHEIRO - P1 | F29: 2 | H29: =ROUND(F29*G29,2) -> 0
A30: ENGENHEIRO DE SOFTWARE - P1 | F30: 4 | H30: =ROUND(F30*G30,2) -> 0
A31: ANALISTA DE SISTEMAS - P2 | F31: 8 | H31: =ROUND(F31*G31,2) -> 0
A32: PROGRAMADOR - P4 | F32: 8 | H32: =ROUND(F32*G32,2) -> 0
H34: =SUM(H29:H33) -> 0
F35: ENCARGOS SOCIAIS | H35: 0.7725
F36: TOTAL | G36: (B) | H36: =ROUND(H34*(1+H35),2) -> 0
A38: MATERIAIS | E38: QUANT. | F38: UNID. | G38: CUSTO | H38: PARCIAL
G39: UNITÁRIO
H40: =ROUND(E40*G40,2) -> 0
H41: =ROUND(E41*G41,2) -> 0
H42: =ROUND(E42*G42,2) -> 0
H43: =ROUND(E43*G43,2) -> 0
G45: (C) | H45: =SUM(H40:H44) -> 0
F47: (A)+(B)+(C) = (D) | H47: =H25+H36+H45 -> 0
A49: PRODUÇÃO DA EQUIPE | B49: 1 | C49: (E)
E50: CUSTO UNITÁRIO
D51: SEM TRANSPORTE (D)/(E) = (F) | H51: =H47/B49 -> 0
A53: TRANSPORTE | D53: DMT | E53: QUANT. | F53: UNID. | G53: CUSTO | H53: PARCIAL
G54: UNITÁRIO
G58: (G)
A60: CUSTO DIRETO | G60: (F)+(G) | H60: =H51+H58 -> 0
A61: BDI | G61: 0.2302 | H61: =G61*H60 -> 0
A62: PREÇO UNITÁRIO | H62: =ROUND(H60+H61,2) -> 0
A71: COMPOSIÇÃO DE PREÇOS UNITÁRIOS
A75: CÓDIGO: | B75: SERVIÇO: | H75: UNID.
A76: =poo!A15 -> 1.2 | C76: =poo!B15 -> Calibração dos instrumentos | H76: =poo!C15 -> dia
A80: EQUIPAMENTO | B80: MOD. | C80: QUANT. | D80: UTILIZAÇÃO | F80: CUSTO HORÁRIO | H80: PARCIAL
D81: PROD. | E81: IMPROD. | F81: PROD. | G81: IMPROD.
H82: =ROUND(C82*D82*F82,2)+ROUND(C82*E82*G82,2) -> 0
H83: =ROUND(C83*D83*F83,2)+ROUND(C83*E83*G83,2) -> 0
H90: =ROUND(C90*D90*F90,2)+ROUND(C90*E90*G90,2) -> 0
G91: (A) | H91: =SUM(H82:H90) -> 0
A93: MÃO DE OBRA SUPLEMENTAR | F93: QUANT. | G93: SALÁRIO | H93: PARCIAL
G94: HORA
A95: =MDO!A15 -> TÉCNICO EM AUTOMAÇÃO - TO | F95: 8 | H95: =ROUND(F95*G95,2) -> 0
A96: =MDO!A17 -> TÉCNICO EM INSTRUMENTAÇÃO - T2 | F96: 16 | H96: =ROUND(F96*G96,2) -> 0
H97: =ROUND(F97*G97,2) -> 0
H98: =ROUND(F98*G98,2) -> 0
H100: =SUM(H95:H99) -> 0
F101: ENCARGOS SOCIAIS | H101: 0.7725
F102: TOTAL | G102: (B) | H102: =ROUND(H100*(1+H101),2) -> 0
A104: MATERIAIS | E104: QUANT. | F104: UNID. | G104: CUSTO | H104: PARCIAL
G105: UNITÁRIO
H106: =ROUND(E106*G106,2) -> 0
H107: 0 | K107: =0.1*H102 -> 0
H108: 0
H109: 0
H110: 0
H111: 0
G112: (C) | H112: =SUM(H106:H111) -> 0
F114: (A)+(B)+(C) = (D) | H114: =H91+H102+H112 -> 0
A116: PRODUÇÃO DA EQUIPE | B116: 1 | C116: (E)
E117: CUSTO UNITÁRIO
D118: SEM TRANSPORTE (D)/(E) = (F) | H118: =H114/B116 -> 0
A120: TRANSPORTE | D120: DMT | E120: QUANT. | F120: UNID. | G120: CUSTO | H120: PARCIAL
G121: UNITÁRIO
G125: (G)
A127: CUSTO DIRETO | G127: (F)+(G) | H127: =H118+H125 -> 0
A128: BDI | G128: =G61 -> 0.2302 | H128: =G128*H127 -> 0
A129: PREÇO UNITÁRIO | H129: =ROUND(H127+H128,2) -> 0
A137: COMPOSIÇÃO DE PREÇOS UNITÁRIOS
A141: CÓDIGO: | B141: SERVIÇO: | H141: UNID.
A142: =poo!A17 -> 1.3 | C142: =poo!B17 -> Comissionamento, testes e colocação em operação | H142: =poo!C17 -> dia
A146: EQUIPAMENTO | B146: MOD. | C146: QUANT. | D146: UTILIZAÇÃO | F146: CUSTO HORÁRIO | H146: PARCIAL
D147: PROD. | E147: IMPROD. | F147: PROD. | G147: IMPROD.
H148: =ROUND(C148*D148*F148,2)+ROUND(C148*E148*G148,2) -> 0
H149: =ROUND(C149*D149*F149,2)+ROUND(C149*E149*G149,2) -> 0
H156: =ROUND(C156*D156*F156,2)+ROUND(C156*E156*G156,2) -> 0
G157: (A) | H157: =SUM(H148:H156) -> 0
A159: MÃO DE OBRA SUPLEMENTAR | F159: QUANT. | G159: SALÁRIO | H159: PARCIAL
G160: HORA
A161: =MDO!A5 -> ENGENHEIRO - P1 | F161: 8 | H161: =ROUND(F161*G161,2) -> 0
A162: =MDO!A15 -> TÉCNICO EM AUTOMAÇÃO - TO | F162: 8 | H162: =ROUND(F162*G162,2) -> 0
A163: =MDO!A17 -> TÉCNICO EM INSTRUMENTAÇÃO - T2 | F163: 8 | H163: =ROUND(F163*G163,2) -> 0
A164: =MDO!A19 -> AUXILIAR TÉCNICO - T3 | F164: 16 | H164: =ROUND(F164*G164,2) -> 0
H165: =ROUND(F165*G165,2) -> 0
H166: =SUM(H161:H165) -> 0
F167: ENCARGOS SOCIAIS | H167: 0.7725
F168: TOTAL | G168: (B) | H168: =ROUND(H166*(1+H167),2) -> 0
A170: MATERIAIS | E170: QUANT. | F170: UNID. | G170: CUSTO | H170: PARCIAL
G171: UNITÁRIO
H172: =ROUND(E172*G172,2) -> 0
H173: 0
H174: 0
H175: 0
H176: 0
H177: 0
G178: (C) | H178: =SUM(H172:H177) -> 0
F180: (A)+(B)+(C) = (D) | H180: =H157+H168+H178 -> 0
A182: PRODUÇÃO DA EQUIPE | B182: 1 | C182: (E)
E183: CUSTO UNITÁRIO
D184: SEM TRANSPORTE (D)/(E) = (F) | H184: =H180/B182 -> 0
A186: TRANSPORTE | D186: DMT | E186: QUANT. | F186: UNID. | G186: CUSTO | H186: PARCIAL
G187: UNITÁRIO
G191: (G)
A193: CUSTO DIRETO | G193: (F)+(G) | H193: =H184+H191 -> 0
A194: BDI | G194: =G128 -> 0.2302 | H194: =G194*H193 -> 0
A195: PREÇO UNITÁRIO | H195: =ROUND(H193+H194,2) -> 0
A203: COMPOSIÇÃO DE PREÇOS UNITÁRIOS
A207: CÓDIGO: | B207: SERVIÇO: | H207: UNID.
A208: =poo!A19 -> 1.4 | C208: =poo!B19 -> Operação Assistida | H208: =poo!C19 -> dia
A212: EQUIPAMENTO | B212: MOD. | C212: QUANT. | D212: UTILIZAÇÃO | F212: CUSTO HORÁRIO | H212: PARCIAL
D213: PROD. | E213: IMPROD. | F213: PROD. | G213: IMPROD.
H214: =ROUND(C214*D214*F214,2)+ROUND(C214*E214*G214,2) -> 0
H215: =ROUND(C215*D215*F215,2)+ROUND(C215*E215*G215,2) -> 0
H222: =ROUND(C222*D222*F222,2)+ROUND(C222*E222*G222,2) -> 0
G223: (A) | H223: =SUM(H214:H222) -> 0
A225: MÃO DE OBRA SUPLEMENTAR | F225: QUANT. | G225: SALÁRIO | H225: PARCIAL
G226: HORA
A227: =MDO!A5 -> ENGENHEIRO - P1 | F227: 8 | H227: =ROUND(F227*G227,2) -> 0
A228: =MDO!A15 -> TÉCNICO EM AUTOMAÇÃO - TO | F228: 8 | H228: =ROUND(F228*G228,2) -> 0
A229: =A96 -> TÉCNICO EM INSTRUMENTAÇÃO - T2 | F229: 8 | H229: =ROUND(F229*G229,2) -> 0
A230: =MDO!A19 -> AUXILIAR TÉCNICO - T3 | F230: 24 | H230: =ROUND(F230*G230,2) -> 0
H231: =ROUND(F231*G231,2) -> 0
H232: =SUM(H227:H231) -> 0
F233: ENCARGOS SOCIAIS | H233: 0.7725
F234: TOTAL | G234: (B) | H234: =ROUND(H232*(1+H233),2) -> 0
A236: MATERIAIS | E236: QUANT. | F236: UNID. | G236: CUSTO | H236: PARCIAL
G237: UNITÁRIO
H238: =ROUND(E238*G238,2) -> 0
H239: 0
H240: 0
H241: 0
H242: 0
H243: 0
G244: (C) | H244: =SUM(H238:H243) -> 0
F246: (A)+(B)+(C) = (D) | H246: =H223+H234+H244 -> 0
A248: PRODUÇÃO DA EQUIPE | B248: 1 | C248: (E)
E249: CUSTO UNITÁRIO
D250: SEM TRANSPORTE (D)/(E) = (F) | H250: =H246/B248 -> 0
A252: TRANSPORTE | D252: DMT | E252: QUANT. | F252: UNID. | G252: CUSTO | H252: PARCIAL
G253: UNITÁRIO
G257: (G)
A259: CUSTO DIRETO | G259: (F)+(G) | H259: =H250+H257 -> 0
A260: BDI | G260: =G194 -> 0.2302 | H260: =G260*H259 -> 0
A261: PREÇO UNITÁRIO | H261: =ROUND(H259+H260,2) -> 0
A269: COMPOSIÇÃO DE PREÇOS UNITÁRIOS
A273: CÓDIGO: | B273: SERVIÇO: | H273: UNID.
A274: =poo!A21 -> 1.5 | C274: =poo!B21 -> Treinamento | H274: =poo!C21 -> dia
A278: EQUIPAMENTO | B278: MOD. | C278: QUANT. | D278: UTILIZAÇÃO | F278: CUSTO HORÁRIO | H278: PARCIAL
D279: PROD. | E279: IMPROD. | F279: PROD. | G279: IMPROD.
H280: =ROUND(C280*D280*F280,2)+ROUND(C280*E280*G280,2) -> 0
H281: =ROUND(C281*D281*F281,2)+ROUND(C281*E281*G281,2) -> 0
H288: =ROUND(C288*D288*F288,2)+ROUND(C288*E288*G288,2) -> 0
G289: (A) | H289: =SUM(H280:H288) -> 0
A291: MÃO DE OBRA SUPLEMENTAR | F291: QUANT. | G291: SALÁRIO | H291: PARCIAL
G292: HORA
A293: =MDO!A11 -> ENGENHEIRO - P2 | F293: 4 | H293: =ROUND(F293*G293,2) -> 0
A294: =MDO!A15 -> TÉCNICO EM AUTOMAÇÃO - TO | F294: 8 | H294: =ROUND(F294*G294,2) -> 0
G295: =MDO!C74 -> 0 | H295: =ROUND(F295*G295,2) -> 0
G296: =MDO!C136 -> 0 | H296: =ROUND(F296*G296,2) -> 0
G297: =MDO!C140 -> 0 | H297: =ROUND(F297*G297,2) -> 0
H298: =SUM(H293:H297) -> 0
F299: ENCARGOS SOCIAIS | H299: 0.7725
F300: TOTAL | G300: (B) | H300: =ROUND(H298*(1+H299),2) -> 0
A302: MATERIAIS | E302: QUANT. | F302: UNID. | G302: CUSTO | H302: PARCIAL
G303: UNITÁRIO
H304: =ROUND(E304*G304,2) -> 0
H305: 0
H306: 0
H307: 0
H308: 0
H309: 0
G310: (C) | H310: =SUM(H304:H309) -> 0
F312: (A)+(B)+(C) = (D) | H312: =H289+H300+H310 -> 0
A314: PRODUÇÃO DA EQUIPE | B314: 1 | C314: (E)
E315: CUSTO UNITÁRIO
D316: SEM TRANSPORTE (D)/(E) = (F) | H316: =H312/B314 -> 0
A318: TRANSPORTE | D318: DMT | E318: QUANT. | F318: UNID. | G318: CUSTO | H318: PARCIAL
G319: UNITÁRIO
G323: (G)
A325: CUSTO DIRETO | G325: (F)+(G) | H325: =H316+H323 -> 0
A326: BDI | G326: =G260 -> 0.2302 | H326: =G326*H325 -> 0
A327: PREÇO UNITÁRIO | H327: =ROUND(H325+H326,2) -> 0
A335: COMPOSIÇÃO DE PREÇOS UNITÁRIOS
A339: CÓDIGO: | B339: SERVIÇO: | H339: UNID.
A340: =poo!A23 -> 1.6 | C340: =poo!B23 -> Recuperação e Adaptação | H340: =poo!C23 -> dia
A344: EQUIPAMENTO | B344: MOD. | C344: QUANT. | D344: UTILIZAÇÃO | F344: CUSTO HORÁRIO | H344: PARCIAL
D345: PROD. | E345: IMPROD. | F345: PROD. | G345: IMPROD.
H346: =ROUND(C346*D346*F346,2)+ROUND(C346*E346*G346,2) -> 0
H347: =ROUND(C347*D347*F347,2)+ROUND(C347*E347*G347,2) -> 0
H354: =ROUND(C354*D354*F354,2)+ROUND(C354*E354*G354,2) -> 0
G355: (A) | H355: =SUM(H346:H354) -> 0
A357: MÃO DE OBRA SUPLEMENTAR | F357: QUANT. | G357: SALÁRIO | H357: PARCIAL
G358: HORA
A359: ENGENHEIRO - P1 | F359: 8 | H359: =ROUND(F359*G359,2) -> 0
A360: =MDO!A15 -> TÉCNICO EM AUTOMAÇÃO - TO | F360: 8 | H360: =ROUND(F360*G360,2) -> 0
A361: =MDO!A17 -> TÉCNICO EM INSTRUMENTAÇÃO - T2 | F361: 8 | H361: =ROUND(F361*G361,2) -> 0
... 24 more rows

Sheet poo
A4: OBRA: PROJETO JAÍBA
A5: LOCAL: MOCAMBINHO - MG
A6: DATA: JANEIRO 2012
A7: PLANILHA ORÇAMENTÁRIA
A8: ITEM | B8: DESCRIÇÃO DOS SERVIÇOS | C8: UNID | D8: QUANT | E8: PREÇOS (R$)
E9: UNITÁRIO | F9: TOTAL
A11: 1 | B11: Engenharia de Automação
A13: 1.1 | B13: Desenvolvimento de Software | C13: dia | D13: 15 | E13: ='CPU-AUTOMAÇÃO'!H62 -> 0 | F13: =ROUND(D13*E13,2) -> 0
A15: 1.2 | B15: Calibração dos instrumentos | C15: dia | D15: 20 | E15: ='CPU-AUTOMAÇÃO'!H129 -> 0 | F15: =ROUND(D15*E15,2) -> 0
A17: 1.3 | B17: Comissionamento, testes e colocação em operação | C17: dia | D17: 40 | E17: ='CPU-AUTOMAÇÃO'!H195 -> 0 | F17: =ROUND(D17*E17,2) -> 0
A19: 1.4 | B19: Operação Assistida | C19: dia | D19: 15 | E19: ='CPU-AUTOMAÇÃO'!H261 -> 0 | F19: =ROUND(D19*E19,2) -> 0
A21: 1.5 | B21: Treinamento | C21: dia | D21: 6 | E21: ='CPU-AUTOMAÇÃO'!H327 -> 0 | F21: =ROUND(D21*E21,2) -> 0
A23: 1.6 | B23: Recuperação e Adaptação | C23: dia | D23: 20 | E23: ='CPU-AUTOMAÇÃO'!H393 -> 0 | F23: =ROUND(D23*E23,2) -> 0
A25: 2 | B25: Fornecimento da Instrumentação
A27: 2.1 | B27: Medidor Eletromagnético de vazão | C27: conj. | D27: 4 | E27: =FORNECIMENTO!H62 -> 0 | F27: =ROUND(D27*E27,2) -> 0
A29: 2.2 | B29: Transmissor de pressão | C29: conj. | D29: 4 | E29: =FORNECIMENTO!H129 -> 0 | F29: =ROUND(D29*E29,2) -> 0
A31: 2.3 | B31: Relé microprocessado digital | C31: conj. | D31: 8 | E31: =FORNECIMENTO!H195 -> 0 | F31: =ROUND(D31*E31,2) -> 0
A33: 2.4 | B33: Transmissor de temperatura PT100 | C33: conj. | D33: 12 | E33: =FORNECIMENTO!H261 -> 0 | F33: =ROUND(D33*E33,2) -> 0
A35: 2.5 | B35: Medidor de vibração | C35: conj. | D35: 8 | E35: =FORNECIMENTO!H327 -> 0 | F35: =ROUND(D35*E35,2) -> 0
A37: 2.6 | B37: Transmissor de nível | C37: conj. | D37: 4 | E37: =FORNECIMENTO!H393 -> 0 | F37: =ROUND(D37*E37,2) -> 0
A39: 2.7 | B39: Material de montagem | C39: conj. | D39: 1 | E39: ='DETA MATE'!F14 -> 0 | F39: =ROUND(D39*E39,2) -> 0
A41: 3 | B41: Montagem da Instrumentação
A43: 3.1 | B43: Medidor Eletromagnético de vazão | C43: conj. | D43: 4 | E43: ='CPU-MONTAGEM'!H62 -> 0 | F43: =ROUND(D43*E43,2) -> 0
A45: 3.2 | B45: Transmissor de pressão | C45: conj. | D45: 4 | E45: ='CPU-MONTAGEM'!H129 -> 0 | F45: =ROUND(D45*E45,2) -> 0
A47: 3.3 | B47: Relé microprocessado digital | C47: conj. | D47: 8 | E47: ='CPU-MONTAGEM'!H195 -> 0 | F47: =ROUND(D47*E47,2) -> 0
A49: 3.4 | B49: Transmissor de temperatura PT100 | C49: conj. | D49: 12 | E49: ='CPU-MONTAGEM'!H261 -> 0 | F49: =ROUND(D49*E49,2) -> 0
A51: 3.5 | B51: Medidor de vibração | C51: conj. | D51: 8 | E51: ='CPU-MONTAGEM'!H327 -> 0 | F51: =ROUND(D51*E51,2) -> 0
A53: 3.6 | B53: Transmissor de nível | C53: conj. | D53: 4 | E53: ='CPU-MONTAGEM'!H393 -> 0 | F53: =ROUND(D53*E53,2) -> 0
A55: 4 | B55: Veículo
A56: 4.1 | B56: Fornecimento de 01 veiculo utilitário com ar condicionado para apoio à fiscalização, incluindomdespesas com combustivel, óleo, manutenção, licenciamento, seguros e impostos | C56: mês | D56: 4 | E56: ='CPU-MONTAGEM'!H459 -> 0 | F56: =ROUND(D56*E56,2) -> 0
A58: TOTAL GERAL | F58: =SUBTOTAL(9,F12:F56) -> 0
